bitfinex/quotes_SOLUSD_20250525
["timestamp","ask_amount","ask_price","bid_price","bid_amount"]
[1748131990256,12.69748218,176.38,176.37,36.03061189]
[1748131990484,12.69748218,176.39,176.37,36.03061189]
[1748131990989,12.69748218,176.39,176.37,33.94]
[1748131997560,12.69748218,176.39,176.38,248.84]
[1748131997860,12.69748218,176.39,176.38,250.9356682]
[1748131998779,12.69748218,176.39,176.38,284.8756682]
[1748132000394,12.69748218,176.39,176.38,2.0956682]
[1748132000694,12.69748218,176.39,176.38,70.98]
[1748132002680,12.69748218,176.39,176.38,33.94]
[1748132005093,12.69748218,176.39,176.27,117.09789691]
[1748132005094,12.69748218,176.39,176.28,0.14216157]
[1748132005390,19.24088218,176.4,176.31,12.69748218]
[1748132005391,12.69748218,176.36,176.31,12.69748218]
[1748132005761,8.11408218,176.36,176.31,12.69748218]
[1748132006085,8.11408218,176.36,176.32,2.09897625]
[1748132006271,8.11408218,176.36,176.33,33.94]
[1748132006793,8.11408218,176.36,176.34,2.09897625]
[1748132007288,12.69748218,176.35,176.27,95.19748218]
[1748132007490,12.69748218,176.33,176.28,282.8]
[1748132007670,12.69748218,176.31,176.28,282.8]
[1748132007868,12.69748218,176.31,176.28,70.98]
[1748132008080,12.69748218,176.32,176.29,2.10112261]
[1748132008678,12.69748218,176.32,176.3,2.10112261]
[1748132009170,12.69748218,176.32,176.31,2.10112261]
[1748132010991,12.69748218,176.36,176.31,14.79860479]
[1748132011169,12.69748218,176.37,176.32,33.96]
[1748132011364,12.69748218,176.36,176.32,33.96]
[1748132011795,12.69748218,176.36,176.33,2.10112261]
[1748132012792,12.69748218,176.36,176.34,2.10112261]
[1748132013493,12.69748218,176.36,176.35,2.10112261]
[1748132014969,12.69748218,176.36,176.32,33.96]
[1748132015180,12.69748218,176.33,176.28,12.69748218]
[1748132015389,12.69748218,176.32,176.27,12.69748218]
[1748132015575,12.69748218,176.31,176.29,33.96]
[1748132015775,12.69748218,176.31,176.3,33.96]
[1748132016408,12.69748218,176.31,176.3,36.06047445]
[1748132017691,12.69748218,176.31,176.3,284.94047445]
[1748132020809,12.69748218,176.32,176.3,284.94047445]
[1748132021105,12.69748218,176.32,176.3,36.06047445]
[1748132021399,12.69748218,176.32,176.31,2.10047445]
[1748132024483,12.69748218,176.32,176.31,36.06047445]
[1748132024888,12.69748218,176.32,176.31,33.96]
[1748132027499,12.69748218,176.32,176.31,282.82]
[1748132030911,26.0,176.34,176.31,70.94]
[1748132031092,12.69748218,176.32,176.31,70.94]
[1748132034611,12.69748218,176.32,176.31,73.03993229]
[1748132034913,12.69748218,176.32,176.31,36.05993229]
[1748132035650,12.69748218,176.32,176.31,2.09993229]
[1748132035815,26.0,176.25,176.1,1.6458]
[1748132036007,12.69748218,176.15,176.05,1.6458]
[1748132036504,12.69748218,176.15,176.03,22.49541451]
[1748132036505,54.19890715,176.15,176.14,41.99803979]
[1748132036806,26.0,176.12,176.03,22.49541451]
[1748132037110,12.69748218,176.07,176.03,22.49541451]
[1748132037305,12.69748218,176.06,176.03,22.49541451]
[1748132037607,12.69748218,176.05,176.04,248.86]
[1748132037983,12.69748218,176.05,176.04,282.82]
[1748132038392,12.69748218,176.06,176.04,33.96]
[1748132038609,26.0,176.11,176.04,33.96]
[1748132038610,12.69748218,176.05,176.04,33.96]
[1748132039109,28.80394279,176.12,176.04,33.96]
[1748132039110,26.0,176.09,176.04,33.96]
[1748132039316,12.69748218,176.05,176.04,33.96]
[1748132043715,26.0,176.09,176.04,46.65748218]
[1748132043716,12.69748218,176.09,176.04,46.65748218]
[1748132044117,12.74519974,176.09,176.04,33.96]
[1748132044689,135.7,176.15,176.04,33.96]
[1748132044890,12.74519974,176.09,176.04,33.96]
[1748132045194,12.74519974,176.08,176.04,33.96]
[1748132046109,12.74519974,176.07,176.04,33.96]
[1748132047207,12.74519974,176.08,176.04,33.96]
[1748132047717,12.74519974,176.08,176.05,249.08]
[1748132051925,12.74519974,176.08,176.05,37.0]
[1748132053522,12.74519974,176.08,176.04,33.96]
[1748132057527,12.74519974,176.08,176.05,249.12]
[1748132058206,26.0,176.12,176.05,249.12]
[1748132058407,12.74519974,176.08,176.05,36.96]
[1748132060632,12.74519974,176.08,176.04,33.96]
[1748132064040,12.74519974,176.09,176.04,33.96]
[1748132067643,12.74519974,176.09,176.05,249.14]
[1748132071254,20.28774886,176.13,176.05,249.14]
[1748132071458,38.74519974,176.12,176.05,249.14]
[1748132072539,12.74519974,176.12,176.05,249.14]
[1748132073774,12.74519974,176.12,176.05,36.96]
[1748132074652,12.74519974,176.11,176.05,36.96]
[1748132075162,1.6381,176.13,176.04,33.96]
[1748132075335,12.74519974,176.1,176.04,33.96]
[1748132077358,1.6381,176.13,176.04,33.96]
[1748132077556,12.74519974,176.1,176.05,249.12]
[1748132079765,12.74519974,176.1,176.05,36.96]
[1748132080252,12.74519974,176.1,176.04,33.96]
[1748132080465,12.74519974,176.11,176.04,33.96]
[1748132080671,1.6381,176.13,176.04,33.96]
[1748132080840,12.74519974,176.11,176.04,33.96]
[1748132082669,1.6381,176.13,176.04,33.96]
[1748132082839,12.74519974,176.11,176.04,33.96]
[1748132083858,1.6381,176.13,176.04,33.96]
[1748132084066,12.74519974,176.11,176.04,33.96]
[1748132087465,12.74519974,176.11,176.05,249.1]
[1748132088264,12.74519974,176.11,176.05,36.94]
[1748132088665,12.74519974,176.11,176.04,33.96]
[1748132089671,8.15519637,176.11,176.04,33.96]
[1748132096478,34.15519637,176.12,176.04,33.96]
[1748132096974,8.15519637,176.11,176.04,33.96]
[1748132097577,8.15519637,176.11,176.05,249.1]
[1748132097963,8.15519637,176.1,176.05,249.1]
[1748132098364,8.15519637,176.11,176.05,249.1]
[1748132098874,8.15519637,176.11,176.05,36.94]
[1748132101378,8.15519637,176.08,176.05,36.94]
[1748132101585,8.15519637,176.08,176.06,34.0]
[1748132102162,8.15519637,176.07,176.0,82.5]
[1748132102363,8.15519637,176.06,176.01,34.0]
[1748132102571,8.15519637,176.05,176.01,34.0]
[1748132102773,8.15519637,176.05,175.98,0.14216157]
[1748132102975,8.15519637,176.05,176.02,34.0]
[1748132103221,8.15519637,176.03,175.96,82.5]
[1748132103485,8.15519637,176.0,175.97,34.0]
[1748132105787,12.75865192,176.0,175.97,34.0]
[1748132107568,12.75865192,176.0,175.98,249.14]
[1748132108384,12.75865192,176.04,175.98,249.14]
[1748132108385,12.75865192,175.99,175.98,249.14]
[1748132108579,12.75865192,175.99,175.98,70.94]
[1748132109693,20.49175192,175.99,175.98,70.96]
[1748132109864,39.14140078,175.99,175.98,70.96]
[1748132110971,26.38274886,175.99,175.98,70.96]
[1748132111178,20.49175192,175.99,175.98,70.96]
[1748132113094,39.14140078,175.99,175.98,70.96]
[1748132115487,26.0,175.95,175.86,1.5716]
[1748132115694,12.75865192,175.9,175.82,1.6354]
[1748132115872,12.75865192,175.9,175.83,34.02]
[1748132116187,26.0,175.95,175.84,0.14216157]
[1748132116391,12.75865192,175.92,175.84,0.14216157]
[1748132117290,12.75865192,175.91,175.84,0.14216157]
[1748132117480,12.75865192,175.91,175.85,249.24]
[1748132118593,12.75865192,175.91,175.83,26.0]
[1748132118771,12.75865192,175.91,175.84,34.02]
[1748132119892,12.75865192,175.92,175.84,34.02]
[1748132120192,12.75865192,175.93,175.84,34.02]
[1748132120490,12.75865192,175.92,175.84,34.02]
[1748132122407,12.75865192,175.92,175.84,116.52]
[1748132122803,26.0,175.95,175.84,116.52]
[1748132122982,12.75865192,175.92,175.84,116.52]
[1748132123781,26.0,175.95,175.84,116.52]
[1748132123989,12.75865192,175.92,175.84,116.52]
[1748132125102,26.0,175.95,175.84,116.52]
[1748132125304,12.75865192,175.93,175.84,116.52]
[1748132126318,12.75865192,175.92,175.84,116.52]
[1748132127503,12.75865192,175.92,175.85,249.28]
[1748132127807,154.34964886,175.98,175.85,249.28]
[1748132128016,12.75865192,175.93,175.85,249.28]
[1748132133822,8.17244183,175.93,175.85,249.28]
[1748132134194,8.17244183,175.93,175.84,116.52]
[1748132134911,8.17244183,175.92,175.84,116.52]
[1748132135108,8.17244183,175.9,175.84,116.52]
[1748132135415,8.17244183,175.9,175.84,34.02]
[1748132135818,8.17244183,175.9,175.83,26.0]
[1748132136004,8.17244183,175.9,175.85,34.04]
[1748132136395,8.17244183,175.89,175.82,83.77756157]
[1748132136597,8.17244183,175.89,175.83,34.04]
[1748132137593,8.17244183,175.89,175.84,249.3]
[1748132139896,8.17244183,175.9,175.84,249.3]
[1748132140117,8.17244183,175.9,175.84,36.92]
[1748132140418,26.0,175.89,175.84,36.92]
[1748132140744,34.17244183,175.89,175.83,34.04]
[1748132141822,26.0,175.89,175.83,34.04]
[1748132146523,34.17244183,175.89,175.83,34.04]
[1748132146820,26.0,175.89,175.83,34.04]
[1748132147029,34.17244183,175.89,175.83,34.04]
[1748132147627,34.17244183,175.89,175.84,249.28]
[1748132149922,34.17244183,175.89,175.84,36.88]
[1748132152328,8.17244183,175.89,175.83,34.04]
[1748132152927,26.0,175.91,175.83,34.04]
[1748132153129,8.17244183,175.9,175.83,34.04]
[1748132153822,8.17244183,175.9,175.82,83.77756157]
[1748132154029,8.17244183,175.9,175.84,34.04]
[1748132155540,26.0,175.91,175.84,34.04]
[1748132155832,8.17244183,175.9,175.84,34.04]
[1748132156210,8.17244183,175.89,175.84,34.04]
[1748132157612,8.17244183,175.89,175.85,249.28]
[1748132159932,8.17244183,175.89,175.85,36.88]
[1748132160731,8.17244183,175.87,175.85,36.88]
[1748132160937,8.17244183,175.87,175.8,108.5]
[1748132161131,8.17244183,175.85,175.78,84.0569]
[1748132161433,8.17244183,175.85,175.79,34.04]
[1748132161727,8.17244183,175.85,175.76,108.5]
[1748132161728,8.17244183,175.84,175.76,82.5]
[1748132161924,8.17244183,175.84,175.77,34.04]
[1748132162333,8.17244183,175.83,175.77,34.04]
[1748132162543,8.17244183,175.83,175.75,26.0]
[1748132162743,8.17244183,175.83,175.78,34.04]
[1748132163532,8.17244183,175.85,175.78,34.04]
[1748132163736,34.17244183,175.86,175.78,34.04]
[1748132164515,8.17244183,175.86,175.78,34.04]
[1748132165141,8.17244183,175.85,175.78,34.04]
[1748132165614,8.17244183,175.86,175.78,34.04]
[1748132166334,7.30589616,175.89,175.79,18.64964886]
[1748132166634,4.03470541,175.9,175.79,18.64964886]
[1748132167525,8.17244183,175.91,175.8,249.3]
[1748132167733,8.17244183,175.91,175.8,250.9172]
[1748132168039,8.17244183,175.87,175.81,34.04]
[1748132172545,8.17244183,175.89,175.81,34.04]
[1748132173642,8.17244183,175.9,175.81,34.04]
[1748132173827,18.64964886,175.91,175.81,34.04]
[1748132174033,8.17244183,175.9,175.81,34.04]
[1748132174536,18.64964886,175.91,175.81,34.04]
[1748132174837,8.17244183,175.9,175.81,34.04]
[1748132177535,8.17244183,175.9,175.82,249.24]
[1748132178452,26.0,175.89,175.82,36.82]
[1748132178648,26.0,175.89,175.81,116.54]
[1748132181455,26.0,175.91,175.81,116.54]
[1748132184235,26.0,175.91,175.82,0.14216157]
[1748132187260,26.0,175.91,175.82,82.64216157]
[1748132187459,26.0,175.91,175.83,249.22]
[1748132189665,26.0,175.91,175.83,36.82]
[1748132190066,26.0,175.91,175.82,82.64216157]
[1748132193670,8.17244183,175.93,175.82,82.64216157]
[1748132194766,8.17244183,175.92,175.82,82.64216157]
[1748132194970,26.0,175.94,175.82,82.64216157]
[1748132195173,8.17244183,175.92,175.82,82.64216157]
[1748132195468,8.17244183,175.88,175.8,1.6172]
[1748132195648,8.17244183,175.86,175.76,1.6364]
[1748132195848,8.17244183,175.84,175.76,1.6364]
[1748132196042,8.17244183,175.84,175.77,34.04]
[1748132196771,8.17244183,175.85,175.77,34.04]
[1748132197158,8.17244183,175.87,175.77,34.04]
[1748132197558,8.17244183,175.87,175.78,249.22]
[1748132197867,12.77856724,175.87,175.78,249.22]
[1748132198467,26.0,175.88,175.78,249.22]
[1748132198674,12.77856724,175.87,175.78,249.22]
[1748132200862,12.77856724,175.86,175.78,249.22]
[1748132201260,12.77856724,175.85,175.76,1.6364]
[1748132201454,12.77856724,175.84,175.77,34.04]
[1748132202671,12.77856724,175.85,175.77,34.04]
[1748132204073,1.5189,175.86,175.77,34.04]
[1748132204279,12.77856724,175.85,175.77,34.04]
[1748132205677,12.77856724,175.84,175.77,34.04]
[1748132206767,12.77856724,175.85,175.77,34.04]
[1748132207479,12.77856724,175.85,175.78,249.3]
[1748132209884,12.77856724,175.85,175.78,36.84]
[1748132212292,12.77856724,175.85,175.77,34.04]
[1748132214093,1.5189,175.86,175.77,34.04]
[1748132214287,12.77856724,175.85,175.77,34.04]
[1748132217493,12.77856724,175.85,175.78,249.24]
[1748132217788,8.18005764,175.85,175.78,249.24]
[1748132218090,8.18005764,175.84,175.78,249.24]
[1748132218600,8.18005764,175.81,175.74,82.5]
[1748132218767,8.18005764,175.8,175.75,34.06]
[1748132218966,8.18005764,175.8,175.76,34.06]
[1748132219163,8.18005764,175.8,175.77,34.06]
[1748132220480,8.18005764,175.79,175.77,34.06]
[1748132221780,12.78982595,175.79,175.77,34.06]
[1748132225296,12.78982595,175.78,175.77,34.06]
[1748132226199,12.78982595,175.79,175.77,34.06]
[1748132226393,12.78982595,175.8,175.77,34.06]
[1748132227500,26.0,175.79,175.78,249.28]
[1748132228308,12.78982595,175.79,175.78,249.28]
[1748132230697,12.78982595,175.79,175.78,36.78]
[1748132230874,12.78982595,175.79,175.77,34.06]
[1748132237511,12.78982595,175.79,175.78,249.3]
[1748132240496,12.78982595,175.79,175.77,34.06]
[1748132243693,8.18480129,175.79,175.77,34.06]
[1748132245394,8.18480129,175.8,175.77,34.06]
[1748132247519,8.18480129,175.8,175.78,249.26]
[1748132250287,8.18480129,175.79,175.78,249.26]
[1748132250687,8.18480129,175.79,175.78,36.74]
[1748132251119,26.0,175.76,175.65,1.5194]
[1748132251330,8.18480129,175.73,175.66,34.06]
[1748132251624,8.18480129,175.74,175.65,1.5194]
[1748132251929,8.18480129,175.74,175.67,34.06]
[1748132255224,8.18480129,175.72,175.68,34.06]
[1748132255409,18.64964886,175.75,175.69,34.06]
[1748132255410,8.18480129,175.7,175.69,34.06]
[1748132256492,8.18480129,175.7,175.6,0.14216157]
[1748132256493,14.35000129,175.7,175.6,0.14216157]
[1748132256697,8.18480129,175.68,175.61,34.06]
[1748132257619,12.80516656,175.68,175.62,249.3]
[1748132260847,12.80516656,175.68,175.62,36.74]
[1748132261011,12.80516656,175.68,175.61,34.06]
[1748132262528,18.97036656,175.7,175.61,34.06]
[1748132262729,12.80516656,175.67,175.6,82.5]
[1748132262931,12.80516656,175.66,175.61,34.08]
[1748132264307,12.80516656,175.66,175.62,34.08]
[1748132267524,12.80516656,175.66,175.63,249.4]
[1748132268233,12.80516656,175.66,175.63,36.76]
[1748132268414,12.80516656,175.66,175.64,34.08]
[1748132268733,12.80516656,175.67,175.64,34.08]
[1748132269236,32.1652,175.7,175.64,34.08]
[1748132269718,44.97036656,175.7,175.64,34.08]
[1748132272031,12.80516656,175.7,175.64,34.08]
[1748132272912,12.80516656,175.69,175.64,34.08]
[1748132273333,12.80516656,175.68,175.64,34.08]
[1748132273742,12.80516656,175.68,175.65,34.08]
[1748132274109,12.80516656,175.68,175.66,34.08]
[1748132274309,12.80516656,175.68,175.67,34.08]
[1748132277536,12.80516656,175.68,175.67,283.44]
[1748132278938,12.80516656,175.68,175.58,108.5]
[1748132279236,12.80516656,175.68,175.59,34.08]
[1748132279536,18.64964886,175.71,175.59,34.08]
[1748132279840,12.80516656,175.7,175.59,34.08]
[1748132280041,12.80516656,175.7,175.59,116.58]
[1748132280336,12.80516656,175.71,175.59,116.58]
[1748132281244,12.80516656,175.71,175.6,18.64964886]
[1748132281420,38.80516656,175.72,175.61,7.8205]
[1748132282448,12.80516656,175.71,175.61,7.8205]
[1748132283116,12.80516656,175.71,175.61,12.27208684]
[1748132284533,12.80516656,175.71,175.61,94.77208684]
[1748132284840,12.80516656,175.71,175.61,90.3205]
[1748132285041,12.80516656,175.7,175.61,90.3205]
[1748132285349,12.80516656,175.7,175.61,84.1133]
[1748132287521,12.80516656,175.7,175.62,249.34]
[1748132288131,38.80516656,175.71,175.62,249.34]
[1748132288453,38.80516656,175.71,175.62,36.7]
[1748132289046,38.80516656,175.71,175.61,1.6133]
[1748132289949,38.30516656,175.71,175.61,1.6133]
[1748132291550,12.80516656,175.7,175.61,1.6133]
[1748132292154,12.80516656,175.69,175.61,1.6133]
[1748132292642,12.30516656,175.69,175.61,1.6133]
[1748132292849,26.0,175.68,175.61,1.6133]
[1748132294651,26.0,175.71,175.61,1.6133]
[1748132294853,12.80516656,175.69,175.59,116.58]
[1748132295929,26.0,175.68,175.59,116.58]
[1748132297448,26.0,175.68,175.6,212.64]
[1748132297639,6.5038,175.68,175.6,249.34]
[1748132297841,8.19470647,175.67,175.6,249.34]
[1748132298049,26.0,175.69,175.61,34.08]
[1748132299236,26.0,175.69,175.59,82.5]
[1748132299237,34.19470647,175.63,175.62,34.08]
[1748132300949,52.84435533,175.63,175.62,34.08]
[1748132301328,34.19470647,175.63,175.62,34.08]
[1748132301827,38.81242762,175.63,175.62,34.08]
[1748132307556,38.81242762,175.63,175.62,283.42]
[1748132308157,21.06918919,175.68,175.62,283.42]
[1748132308158,8.1146,175.68,175.62,283.42]
[1748132308347,20.92702762,175.68,175.62,70.72]
[1748132308558,20.92702762,175.68,175.62,34.08]
[1748132310160,12.81242762,175.67,175.62,34.08]
[1748132311546,12.81242762,175.66,175.62,34.08]
[1748132311863,8.1146,175.68,175.55,84.0008]
[1748132311864,12.81242762,175.65,175.55,84.0008]
[1748132312036,12.81242762,175.65,175.56,34.08]
[1748132312369,12.81242762,175.63,175.57,34.08]
[1748132312660,12.81242762,175.62,175.57,34.08]
[1748132313229,12.81242762,175.59,175.47,1.5092]
[1748132313434,12.81242762,175.6,175.49,18.64964886]
[1748132315258,12.81242762,175.59,175.49,18.64964886]
[1748132316063,12.81242762,175.59,175.52,26.0]
[1748132317474,12.81242762,175.59,175.53,249.36]
[1748132317657,12.81242762,175.59,175.54,34.1]
[1748132320441,12.81242762,175.58,175.47,88.58566666]
[1748132320756,12.81242762,175.57,175.48,34.1]
[1748132321268,12.81242762,175.57,175.49,34.1]
[1748132322642,12.81242762,175.58,175.49,60.1]
[1748132325756,12.81242762,175.58,175.49,142.6]
[1748132327475,12.81242762,175.58,175.5,249.42]
[1748132330978,12.81242762,175.58,175.5,36.66]
[1748132331474,12.81242762,175.58,175.49,142.6]
[1748132331676,1.5487,175.6,175.49,142.6]
[1748132331867,12.81242762,175.59,175.49,142.6]
[1748132337671,12.81242762,175.59,175.5,249.38]
[1748132340172,1.5487,175.6,175.5,249.38]
[1748132340173,12.81242762,175.58,175.5,36.62]
[1748132340376,12.81242762,175.58,175.51,34.1]
[1748132341269,12.81242762,175.58,175.49,108.5]
[1748132341490,12.81242762,175.58,175.47,1.5092]
[1748132341491,12.81242762,175.55,175.47,27.5092]
[1748132341792,8.20819167,175.54,175.48,34.1]
[1748132343587,8.20819167,175.55,175.48,34.1]
[1748132343794,12.82453876,175.55,175.48,34.1]
[1748132344090,12.82453876,175.56,175.48,34.1]
[1748132344672,12.82453876,175.55,175.47,27.5092]
[1748132344872,12.82453876,175.54,175.48,34.1]
[1748132345080,12.82453876,175.55,175.48,34.1]
[1748132345588,12.82453876,175.55,175.47,27.5092]
[1748132345794,12.82453876,175.55,175.48,34.1]
[1748132347586,12.82453876,175.55,175.49,249.4]
[1748132348094,12.82453876,175.55,175.48,34.1]
[1748132353011,12.82453876,175.54,175.48,34.1]
[1748132354923,12.82453876,175.52,175.46,82.5]
[1748132355219,12.82453876,175.49,175.47,34.1]
[1748132355387,12.82453876,175.49,175.48,34.1]
[1748132355577,18.64964886,175.51,175.4,26.0]
[1748132355783,12.82453876,175.48,175.41,34.1]
[1748132356291,12.82453876,175.47,175.39,1.5964]
[1748132356507,12.82453876,175.46,175.4,34.1]
[1748132356894,12.82453876,175.45,175.4,34.1]
[1748132357289,12.82453876,175.45,175.35,84.0964]
[1748132357290,12.82453876,175.45,175.41,34.1]
[1748132357601,12.82453876,175.45,175.42,249.46]
[1748132358594,12.82453876,175.45,175.43,34.12]
[1748132359109,12.82453876,175.45,175.42,249.46]
[1748132359406,12.82453876,175.45,175.44,34.12]
[1748132364507,31.47418762,175.45,175.44,34.12]
[1748132367530,6.4412,175.46,175.44,283.6]
[1748132367694,14.47863876,175.48,175.44,283.6]
[1748132368022,14.47863876,175.48,175.44,70.7]
[1748132368194,26.0,175.49,175.44,70.7]
[1748132368397,26.0,175.49,175.44,34.12]
[1748132368704,38.82453876,175.49,175.44,34.12]
[1748132369214,12.82453876,175.48,175.44,34.12]
[1748132371817,26.0,175.49,175.44,34.12]
[1748132371997,12.82453876,175.51,175.44,34.12]
[1748132372197,18.64964886,175.54,175.44,34.12]
[1748132372516,24.76174886,175.55,175.45,0.14216157]
[1748132372517,6.1121,175.55,175.45,0.14216157]
[1748132372693,18.93663876,175.55,175.45,26.14216157]
[1748132372899,18.64964886,175.58,175.45,108.64216157]
[1748132373104,12.82453876,175.57,175.45,108.64216157]
[1748132375095,12.82453876,175.56,175.45,108.64216157]
[1748132375410,12.82453876,175.56,175.45,113.24370169]
[1748132376321,12.82453876,175.55,175.45,113.24370169]
[1748132376622,12.82453876,175.56,175.45,113.24370169]
[1748132377602,12.82453876,175.56,175.46,249.46]
[1748132378713,12.82453876,175.56,175.46,331.96]
[1748132380626,12.82453876,175.56,175.46,119.08]
[1748132380813,12.82453876,175.56,175.47,34.12]
[1748132383551,26.0,175.55,175.46,82.5]
[1748132383830,12.82453876,175.49,175.47,34.12]
[1748132384130,12.82453876,175.5,175.48,34.12]
[1748132384432,12.82453876,175.51,175.48,34.12]
[1748132387423,18.64964886,175.53,175.48,34.12]
[1748132387628,12.82453876,175.52,175.49,249.44]
[1748132388132,12.82453876,175.53,175.49,249.44]
[1748132388467,12.82453876,175.53,175.49,36.58]
[1748132390140,1.62321155,175.54,175.49,36.58]
[1748132390437,12.82453876,175.53,175.48,34.12]
[1748132390741,1.62321155,175.54,175.48,34.12]
[1748132390954,12.82453876,175.53,175.48,34.12]
[1748132391435,1.62321155,175.54,175.48,34.12]
[1748132391436,0.04471155,175.54,175.48,34.12]
[1748132392107,12.86925031,175.54,175.48,34.12]
[1748132392942,12.36925031,175.54,175.48,34.12]
[1748132397652,12.36925031,175.54,175.49,249.4]
[1748132402051,12.36925031,175.54,175.48,34.12]
[1748132403025,26.0,175.56,175.48,34.12]
[1748132404055,12.82453876,175.57,175.48,34.12]
[1748132405553,12.82453876,175.49,175.39,1.52]
[1748132405752,18.64964886,175.45,175.35,6.2049]
[1748132405957,12.82453876,175.43,175.37,34.12]
[1748132406332,12.82453876,175.43,175.38,34.12]
[1748132406751,26.0,175.47,175.38,34.12]
[1748132406937,12.82453876,175.45,175.38,34.12]
[1748132407143,12.82453876,175.46,175.38,34.12]
[1748132407544,12.82453876,175.46,175.39,249.38]
[1748132407849,12.82453876,175.46,175.39,36.54]
[1748132409448,12.82453876,175.45,175.39,36.54]
[1748132410052,12.82453876,175.45,175.38,34.12]
[1748132410253,12.82453876,175.45,175.35,1.52]
[1748132410455,12.82453876,175.44,175.39,34.12]
[1748132410769,12.82453876,175.43,175.4,34.12]
[1748132411062,12.82453876,175.42,175.41,34.12]
[1748132412078,12.82453876,175.42,175.32,18.64964886]
[1748132412370,12.82453876,175.42,175.33,34.12]
[1748132413442,12.82453876,175.42,175.33,60.12]
[1748132414866,12.82453876,175.43,175.33,60.12]
[1748132415069,12.82453876,175.43,175.33,26.0]
[1748132415282,12.82453876,175.43,175.34,34.12]
[1748132417172,12.82453876,175.43,175.34,116.62]
[1748132417466,12.82453876,175.43,175.35,249.48]
[1748132421256,12.82453876,175.43,175.34,116.62]
[1748132423673,7.6512,175.44,175.34,116.62]
[1748132423860,19.97573876,175.44,175.34,116.62]
[1748132424056,12.82453876,175.46,175.35,18.64964886]
[1748132424370,6.3651,175.49,175.35,101.14964886]
[1748132424371,12.82453876,175.47,175.35,101.14964886]
[1748132424559,12.82453876,175.48,175.35,101.14964886]
[1748132424872,12.82453876,175.48,175.36,1.5275]
[1748132425170,12.82453876,175.48,175.37,18.64964886]
[1748132425775,12.82453876,175.47,175.37,18.64964886]
[1748132427278,12.82453876,175.47,175.36,1.5275]
[1748132427579,12.82453876,175.46,175.38,26.0]
[1748132429277,12.82453876,175.46,175.39,34.12]
[1748132432081,12.82453876,175.46,175.4,34.12]
[1748132432860,12.82453876,175.45,175.4,34.12]
[1748132434268,12.82453876,175.44,175.41,34.12]
[1748132434467,12.82453876,175.44,175.37,82.5]
[1748132434468,12.82453876,175.44,175.36,110.0275]
[1748132434682,12.82453876,175.44,175.37,34.12]
[1748132436063,12.82453876,175.43,175.36,108.5]
[1748132436257,12.82453876,175.43,175.37,34.12]
[1748132437187,12.82453876,175.43,175.36,82.5]
[1748132437397,12.82453876,175.42,175.37,34.12]
[1748132437683,12.82453876,175.42,175.38,249.46]
[1748132437891,12.82453876,175.4,175.38,249.46]
[1748132438067,12.82453876,175.4,175.39,34.12]
[1748132438464,12.82453876,175.41,175.39,34.12]
[1748132438677,12.82453876,175.42,175.39,34.12]
[1748132441877,12.82453876,175.41,175.39,34.12]
[1748132442079,12.82453876,175.42,175.39,34.12]
[1748132442891,12.82453876,175.41,175.39,34.12]
[1748132443506,12.82453876,175.4,175.31,82.5]
[1748132443693,12.82453876,175.38,175.32,34.14]
[1748132444071,12.82453876,175.39,175.32,34.14]
[1748132444982,12.82453876,175.41,175.32,34.14]
[1748132445184,8.0279,175.43,175.35,26.0]
[1748132445495,12.82453876,175.46,175.35,26.0]
[1748132445675,20.87223876,175.48,175.35,26.0]
[1748132445989,8.0477,175.48,175.35,18.64964886]
[1748132447574,8.0477,175.48,175.37,18.64964886]
[1748132447774,8.0477,175.48,175.38,34.14]
[1748132449997,8.0477,175.48,175.38,60.14]